{"text_format":"1","workbook":"xlsx","n_sheets":13,"sheets":["提出書類チェックシート","様式第１号","様式第2号","様式第3号","様式第4号","様式第５号","様式第５号 (記載例)","様式第6号","様式第7号","様式第8号","様式第9号","様式第12号","様式第13号"],"not_rendered":{"charts":0,"images":0,"macros":1,"external_links":0,"defined_names":14,"comments":2,"pivot_tables":0},"unopened":[],"bounds":{"document_bytes":16777216,"sheet_cells":100000,"rows_first":2000,"rows_last":500,"rows_between":2000,"halvings":0,"cell_chars":16384,"cell_head_chars":4096},"cells_cut":0,"cells_raw":0,"read":"whole","date_system":"1900"}

{"sheet":"提出書類チェックシート","index":0,"n_rows":75,"n_cols":7,"rows_kept":75,"cut":false,"hidden":false,"merged":[[13,2,14,3],[66,2,68,3],[72,2,73,3],[69,2,71,3],[3,2,3,3],[7,2,10,3],[17,2,17,3],[18,2,21,3],[22,2,23,3],[24,3,25,3],[24,2,25,2],[26,2,29,3],[15,2,16,3],[61,2,62,3],[63,2,63,3],[64,2,65,3],[43,2,44,2],[43,3,44,3],[51,2,52,3],[11,2,12,3],[26,0,29,0],[26,1,29,1],[31,2,32,3],[33,2,33,3],[30,2,30,3],[34,2,36,3],[38,2,38,3],[41,2,42,3],[39,1,40,1],[39,0,40,0],[39,2,40,3],[28,6,29,6],[4,0,6,0],[22,6,23,6],[22,0,25,0],[22,1,25,1],[22,5,23,5],[18,1,21,1],[18,0,21,0],[22,4,23,4],[4,2,6,2],[4,3,6,3],[4,1,6,1],[7,1,10,1],[7,0,10,0],[9,6,10,6],[20,4,21,4],[20,5,21,5],[20,6,21,6],[9,4,10,4],[9,5,10,5],[15,1,16,1],[15,0,16,0],[28,4,29,4],[28,5,29,5],[45,0,47,0],[48,0,50,0],[45,1,47,1],[45,2,47,2],[45,3,47,3],[48,1,50,1],[48,2,50,2],[48,3,50,3],[59,2,60,2],[59,3,60,3],[51,0,52,0],[53,0,54,0],[53,1,54,1],[53,2,54,2],[53,3,54,3],[55,0,56,0],[55,1,56,1],[55,2,56,2],[55,3,56,3],[51,1,52,1],[57,0,58,0],[57,1,58,1],[57,2,58,2],[57,3,58,3],[72,0,73,0],[72,1,73,1],[69,0,71,0],[69,1,71,1],[61,0,62,0],[61,1,62,1],[66,0,68,0],[66,1,68,1],[11,1,12,1],[11,0,12,0],[64,1,65,1],[64,0,65,0],[13,0,14,0],[13,1,14,1],[59,0,60,0],[59,1,60,1],[43,0,44,0],[43,1,44,1],[34,0,37,0],[34,1,37,1],[41,0,42,0],[41,1,42,1],[31,0,33,0],[31,1,33,1]]}
[null,"提出書類チェックシート【建設工事関係】"]
[null,"※提出不要の場合はチェックのところに「―」を記入してください。"]
["№","提出書類","法人事業所","個人事業所","内容確認","チェック\n（業者用）","チェック\n（役所用）"]
[1,"提出書類チェックシート\n【建設工事関係】","一番前に綴る",null,"チェック欄全てにチェックが入っているか。"]
[2,"浦添市競争入札参加資格審査申請書（建設工事関係）（様式第１号）","申請者は本店の代表者とし、本社情報（原則、登記簿の情報と一致）を記入し、登記印を押印する。","申請者は代表者とし、営業の本拠地である事業所の情報を記入し、代表者の実印を押印する。","日付や内容（フリガナ含む）に記入漏れがないか。\n日付が空白又は未来日になっていないか。"]
[null,null,null,null,"登記印（実印）の押印漏れがないか。"]
[null,null,null,null,"申請の問い合わせに対応できる担当者名前と連絡先の記載があるか。"]
[3,"印鑑証明書","写しを提出する場合は、拡大縮小しないこと。",null,"発行日より３ヶ月以内の提出か。"]
[null,null,null,null,"浦添市競争入札参加資格審査申請書（建設工事関係）（様式第１号）で使用している印鑑と同じものか。"]
[null,null,null,null,"浦添市競争入札参加資格審査申請書（建設工事関係）（様式第１号）に記載されている内容（法人は商号又は名称・所在地・代表者名、個人は代表者名）と同じか。"]
[]
[4,"使用印鑑届【原本】\n（様式第８号）","登記印（実印）以外を使用印とする場合に提出すること。（入札、見積り、契約締結等の行為で使用する印鑑になります。）\n※登記印（実印）を使用する場合は提出する必要はありません。",null,"日付や内容に記入漏れがないか。\n日付が空白又は未来日になっていないか。"]
[null,null,null,null,"「登記印・実印」に押印されている印は浦添市競争入札参加資格審査申請書（建設工事関係）（様式第１号）と印鑑証明書に記載されている印と同じか。"]
[5,"委任状【原本】\n（様式第７号）","県外業者又は沖縄県内離島の市外業者に限り、支店長等へ契約に関する権限（見積、入札、契約締結等）を通年委任する場合にのみ提出",null,"委任状に押印している代表者の印鑑は印鑑証明書の印鑑と同じか。"]
[null,null,null,null,"委任状に押印している受任者の印鑑は使用印鑑届（様式第８号）で届け出た使用印と同じか。"]
[6,"建設業許可通知書又は建設業許可証明書","申請時に有効期限を満たしているもの\n※特定建設業許可の申請中の場合は、申請書の写し可。ただし、申請中の場合、令和７年１月までに許可を取得するものに限る\n※委任する場合、建設業許可申請の様式別紙二(2)の写しも添付すること",null,"登録希望業種の許可があるか。"]
[null,null,null,null,"委任する場合、様式別紙二(2)も添付されているか"]
[7,"過去２年度の工事経歴書","任意様式で業種ごとに作成。\n※自社作成工事経歴書又は経営事項審査申請時の写し可",null,"現場名も記入されているか。"]
[8,"現場専任配置技術員有資格者名簿（様式第２号）\n\n［添付書類］\n※資格等証明書（写し）","※市内・市外業者のみ※\n\n※県外業者は不要。ただし、電算入力表（様式第5号）の有資格者職員数調書には人数を記入すること。\n\n※資格者証については、提出一覧表№８も確認すること。",null,"記載されている方の資格等証明書の写しが名簿順に添付されているか。"]
[null,null,null,null,"10の「経営管理者及び専任技術者名簿」（様式第９号）に記載が無いか。"]
[null,null,null,null,"電算入力表（様式第５号）の「有資格者職員数調書・人数（A）」と人数が一致しているか。ただし、電算入力表の「有資格者職員数調書」に記載の無い資格は除く。"]
[]
[9,"健康保険及び厚生年金保険に係る標準報酬の決定を通知する書面の写し","※市内・市外業者のみ※\n\n該当する技術者氏名を蛍光ペンにてマーキングしてください。（雇用の確認以外の報酬額・税額等の項目については、塗りつぶし可）\n※「現場専任配置技術員有資格者名簿（様式第2号）」、「経営管理者及び専任技術者名簿（様式第9号）」以外の職員は塗りつぶし可",null,"「健康保険及び厚生年金保険に係る標準報酬の決定を通知する書面の写し」に「現場専任配置技術職員有資格者名簿（様式第２号）」及び「経営管理者及び専任技術者名簿（様式第９号）」（役員は除く）に記載のある職員が全員載っているか。"]
[]
[null,null,"ー","※従業員が４人以下のため適用除外されている場合は雇用保険被保険者証の写しを提出（保険者番号、被保険者等記号・番号は見えないよう塗りつぶして提出すること。）","雇用の確認。\n技術者氏名に蛍光ペンでマーキングされているか。"]
[null,null,null,null,"個人事業者で適用除外の場合、雇用保険被保険者証の写しが添付されているか。"]
[10,"経営管理者及び専任技術者名簿（様式第９号）\n\n［添付書類］\n※資格等証明書（写し）","※市内・市外業者のみ※\n\n建設業許可申請書の県様式第七号、県様式第八号（または別紙四）及び資格等証明書の写し添付\n\n※県外業者は不要。ただし、電算入力表（様式第5号）の有資格者職員数調書には人数を記入すること。\n\n※資格者証については、提出一覧表№10も確認すること。",null,"様式第七号、様式第八号（または別紙四）及び資格等証明書が添付されているか"]
[null,null,null,null,"８の｢現場専任配置技術職員有資格者名簿｣（様式第２号）に記載が無いか。"]
[null,null,null,null,"電算入力表（様式第５号）の「有資格者職員数調書・人数（B）」と人数が一致しているか。ただし、電算入力表の「有資格者職員数調書」に記載の無い資格は除く。"]
[]
[11,"最低賃金遵守誓約書\n（様式第12号）","※市内・市外業者のみ※",null,"入札参加資格審査申請書（様式第1号）の申請者と同一か"]
[12,"労働保険証明書\n\nもしくは「労働保険概算・確定申告書」 および「保険料納付の領収書」","\n「労働保険概算・確定申告書」および「保険料納付の領収書」を提出する場合、令和６年度分の申告書と納期到来済の納付書の写しを提出してください。\n\n※適用除外の場合は、理由書（様式第13号）を提出",null,"発行日より３ヶ月以内の提出か。"]
[null,null,null,null,"保険料の未納は無いか。"]
[null,null,"※経営規模等評価結果通知書（総合評定通知書）で「雇用保険加入の有無」が「有」となっている場合は提出不要",null,"適用除外の場合、理由書（様式第13号）が添付されているか。"]
[13,"社会保険料納入証明書\n\nもしくは、直近１年間の健康保険料及び厚生年金保険料の領収書","管轄する年金事務所より発行\n\n※組合健康保険等の場合は、当該組合の任意の様式でも可　\n\n※経営規模等評価結果通知書（総合評定通知書）で「健康保険加入の有無「厚生年金保険加入の有無」が「有」となっている場合は提出不要",null,"発行日より３ヶ月以内の提出か。"]
[null,null,null,null,"保険料の未納は無いか。"]
[null,null,null,null,"領収証を提出する際は、直近１年分の添付があるか。"]
[null,null,"※【法人】については強制加入となっているため、適用除外はない","※適用除外の場合は、理由書（様式\n第13号）を提出","適用除外の場合、理由書（様式第13号）が添付されているか。"]
[14,"建設業労働災害防止協会加入証明書","加入証明書の写し",null,"名称の確認。 "]
[15,"建設業退職金共済事業加入・履行証明書\n","その他の退職金共済制度に加入している場合は、加入が証明できるものを提出すること。\n\n※経営規模等評価結果通知書（総合評定通知書）で「建設業退職金共済制度加入の有無」が「有」となっている場合は提出不要\n\n※どの制度にも加入していない場合は、理由書（様式第13号）を提出すること",null,"名称の確認。"]
[null,null,null,null,"どの制度にも加入していない場合は理由書（様式第13号）が提出されているか"]
[16,"障害者雇用状況報告書又は障害者手帳等","障がい者を雇用している場合で、浦添市独自評点において加点を希望する者のみ\n\n※公共職業安定所長への報告書の写し、又は確認できるもの\n\n※障害者手帳の写し添付の際は障害名を除くこと",null,"社名確認"]
[null,null,null,null,"電算入力表（様式第５号）の「障がい者雇用の有無」の欄の有に☑がつけられているか。"]
[17,"履歴事項全部証明書","法人事業者のみ",null,"発行日より３ヶ月以内の提出か。"]
[null,null,null,null,"履歴事項全部証明書に記載されている商号・住所・代表者名が提出書類の内容と一致しているか。"]
[18,"代表者の身分証明書",null,"申請者である代表者のもの\n（本籍地の市町村発行）","発行日より３ヶ月以内の提出か。"]
[null,null,null,null,"証明書の本人氏名が代表者名と一致しているか。"]
[null,null,null,null,"禁治産・後見の登記・破産の通知を受けていないか。"]
[19,"代表者の登記されていないことの証明書",null,"申請者である代表者のもの\n（法務局発行）","発行日より３ヶ月以内の提出か。"]
[null,null,null,null,"氏名が代表者名になっているか。"]
[null,null,null,null,"後見登記等ファイルに記録がないか。"]
[20,"市町村税の滞納のない証明書又は市町村税の納税証明書（直近２年分）","本店のある市町村より発行\n\n（東京都の場合は法人都民税の直近２年分の納税証明書）",null,"発行日より３ヶ月以内の提出か。"]
[null,null,null,null,"名称に誤りはないか。"]
[21,"代表者の市町村税の滞納のない証明書（完納証明書でも可）",null,"代表者の納税義務がある市町村より発行\n（本店のある市町村と、納税義務のある市町村が同じ場合は省略可）","発行日より３ヶ月以内の提出か。"]
[null,null,null,null,"名称に誤りはないか。"]
[22,"代表者の国民健康保険料（税）の滞納のない証明書",null,"国民健康保険に加入している個人事業者のみ\n代表者の納税義務のある市町村より発行","発行日より３ヶ月以内の提出か。"]
[null,null,null,null,"名称に誤りはないか。"]
[23,"都道府県税の滞納のない証明書又は事業税の納税証明書（直近２年分）","本店のある都道府県より発行\n（法人事業税）","営業所のある都道府県より発行\n（個人事業税）","発行日より３ヶ月以内の提出か。"]
[null,null,null,null,"名称に誤りはないか。"]
[24,"国税納税証明書\n（法人税・消費税等）","法人事業者は様式その３の３","個人事業者は様式その３の２","発行日より３ヶ月以内の提出か。"]
[null,null,null,null,"名称に誤りはないか。"]
[25,"ＩＳＯ取得証明書","ISO9000S、ISO14000S認証取得済で浦添市独自評点において加点を希望する者のみ提出",null,"認証期間内であるか。"]
[null,null,null,null,"名称に誤りはないか。"]
[26,"所在地見取図兼状況報告書（様式第３号）","浦添市内に営業所（本店又は支店等）を有する場合のみ",null,"所在地見取図と状況報告が記載されているか。"]
[27,"営業所等の写真\n（様式第４号）","浦添市内に営業所（本店又は支店等）を有する場合のみ\n\n＊鮮明なカラー写真又は、カラー印刷で提出。\n",null,"営業所等の外観（看板又は表札を含むこと。）の状況が分かるか。"]
[null,null,null,null,"営業所等の内部の状況（本店又は支店等としての機能を備えていること。）がわかるか。"]
[28,"返信用封筒　\nA4規格（角２）","※【ファイルに綴らない】\n\n※140円切手を貼付のうえ通知希望先を記入\n\n※行政書士事務所等が複数社分まとめて提出される際も、返信用の封筒は全社分ご用意ください。\n\n※のりしろに両面テープ等を貼ってください。",null,"140円切手が貼られているか。"]
[null,null,null,null,"通知希望先の記入があるか。"]
[null,null,null,null,"のりしろに両面テープ等を貼ってあるか。"]
[29,"電算入力表\n（様式第５号）","※【ファイルに綴らない】\n\n※商号、支店名、氏名等フリガナを忘れずに記入してください",null,"登録を希望する業種に☑が付いているか。\n様式第５号（記入例）参照"]
[null,null,null,null,"電話番号・FAX・Eメールアドレスの記入漏れがないか。"]
[null,null,null,null,"A３で印刷されているか。"]
[30,"経営規模等評価結果通知書・総合評定値通知書の写し","大臣・県知事から送付された通知書の写し",null,"審査基準日が令和5年6月30日以降のものか。"]
[null,null,null,null,"登録希望業種の総合評定値（P）及び完工高はあるか。"]
[null,"提出用ファイル",null,null,"ファイルは（フラットA4-S型・色指定なし）で表紙及び背表紙に申請書名や商号等の記載があるか。"]

{"sheet":"様式第１号","index":1,"n_rows":44,"n_cols":24,"rows_kept":44,"cut":false,"hidden":false,"merged":[[35,0,36,28],[37,0,38,5],[37,6,38,28],[43,0,44,5],[43,6,44,28],[39,0,40,5],[39,6,40,14],[39,15,40,20],[39,21,40,28],[41,0,42,5],[41,6,42,28],[30,6,30,22],[31,0,32,5],[31,6,32,22],[31,23,32,28],[24,23,24,28],[25,23,30,28],[28,0,29,5],[28,6,29,22],[30,0,30,5],[11,0,13,28],[1,19,1,28],[2,19,3,21],[2,22,2,28],[3,22,3,28],[4,19,4,28],[16,0,19,28],[24,0,26,5],[24,6,24,22],[25,6,26,22],[27,0,27,5],[27,6,27,22]]}
["様式第１号"]
[null,null,null,null,null,null,null,null,null,null,null,null,null,null,null,null,null,null,null,"該当項目に○を記入"]
[null,null,null,null,null,null,null,null,null,null,null,null,null,null,null,null,null,null,null,"新 規",null,null,"更 新"]
[null,null,null,null,null,null,null,null,null,null,null,null,null,null,null,null,null,null,null,null,null,null,"登録番号（    ）"]
[null,null,null,null,null,null,null,null,null,null,null,null,null,null,null,null,null,null,null,"（更新の場合は登録番号を記入）"]
[]
[null,null,null,null,null,null,null,null,null,null,null,null,null,null,null,null,null,null,null,"令和　　年　　月　　日"]
["浦添市長　殿　　　　　　　　　　　　　　　　　　　　　　　　　　　　"]
[]
[]
[]
["浦添市競争入札参加資格審査申請書\n（建設工事関係）"]
[]
[]
[]
[]
["　令和７・８年度において、浦添市で行われる建設工事関係の競争入札参加資格審査を申請します。\n　なお、提出要綱の遵守ならびに申請書及び添付書類の内容については、事実と相違ないことを誓約いたします。また、入札参加資格の認定後、登録された内容について一部情報を公開することに同意します。"]
[]
[]
[]
[]
[]
[]
["【申請者（登記上の本店）】"]
["所在地",null,null,null,null,null,"〒　　　―",null,null,null,null,null,null,null,null,null,null,null,null,null,null,null,null,"登記印（実印）"]
[]
[]
["（フリガナ）"]
["商号又は名称"]
[]
["（フリガナ）"]
["代表者の役職・氏名",null,null,null,null,null,null,null,null,null,null,null,null,null,null,null,null,null,null,null,null,null,null,"（注）法人の場合は法人の登記印、個人の場合は事業主の実印"]
[]
[]
[]
["【申請事務担当者】\n※当該申請の問い合わせについて、回答できる方。(行政書士事務所に依頼する場合は、その担当者でも可)"]
[]
["申請内容問合せ\n担当部署、所属"]
[]
["電話番号",null,null,null,null,null,null,null,null,null,null,null,null,null,null,"FAX番号"]
[]
["メールアドレス"]
[]
["問合せ担当者氏名"]

{"sheet":"様式第2号","index":2,"n_rows":21,"n_cols":10,"rows_kept":21,"cut":false,"hidden":false,"merged":[[13,5,13,6],[13,7,13,8],[20,0,21,8],[1,0,1,9],[10,5,10,6],[10,7,10,8],[11,5,11,6],[11,7,11,8],[12,5,12,6],[12,7,12,8],[7,5,7,6],[7,7,7,8],[8,5,8,6],[8,7,8,8],[9,5,9,6],[9,7,9,8],[3,5,5,6],[3,7,4,9],[5,7,5,8],[6,5,6,6],[6,7,6,8],[13,0,13,1],[13,2,13,3],[8,0,8,1],[8,2,8,3],[9,0,9,1],[9,2,9,3],[10,0,10,1],[10,2,10,3],[11,0,11,1],[11,2,11,3],[12,0,12,1],[12,2,12,3],[6,0,6,1],[6,2,6,3],[7,0,7,1],[7,2,7,3],[3,0,5,1],[3,2,4,4],[5,2,5,3]]}
["様式第２号"]
["現　場　専　任　配　置　技　術　職　員　有　資　格　者　名　簿"]
["  "]
["氏　　　　名",null,"法令による免許等",null,null,"氏　　　　名",null,"法令による免許等"]
[]
[null,null,"名　　称",null,"取得年月日",null,null,"名　　称",null,"取得年月日"]
[]
[]
[]
[]
[]
[]
[]
[]
["記載要領"]
["１「法令による免許等」の欄には、業務に関し法律又は命令による免許又は技術若しくは技能の認定を受けたものを記載すること。"]
["　（例：○○建築士・○○土木施工管理技士等）"]
["２　電算入力表（様式第5号）の「有資格職員数」に記載の無い資格であっても、携わる業務に関係する資格を有する場合はなるべく記載すること。"]
["　　ただし、一人で同一資格（１級、２級○○施工管理技士）を有する場合は、上位（１級）のみ記入。"]
[]
["※ 当該名簿は「健康保険・厚生年金保険被保険者標準報酬決定通知書」の記載順で記入とし、資格書の写しは名簿記載順に並べること。\n(※並びがそろっていない場合は訂正後内容確認いたします。)　"]

{"sheet":"様式第3号","index":3,"n_rows":45,"n_cols":7,"rows_kept":45,"cut":false,"hidden":false,"merged":[[46,1,47,52],[3,0,3,6],[4,0,5,53],[6,0,39,3],[6,5,6,53],[40,0,45,3]]}
["様式第３号"]
[]
[]
[]
["所在地見取図兼状況報告書"]
[]
["所在地見取図",null,null,null,null,"【本市にある営業所（本店又は支店等）の所在地見取図を記入してください。】"]
[]
[]
[]
[]
[]
[]
[]
[]
[]
[]
[]
[]
[]
[]
[]
[]
[]
[]
[]
[]
[]
[]
[]
[]
[]
[]
[]
[]
[]
[]
[]
[]
[]
["営業所等の状況",null,null,null,"１　浦添市にある営業所（本店又は支店等）の状況"]
[null,null,null,null,null,null,"□　専用　　□　併用等（自宅兼事務所、他事業者との共用）"]
[]
[null,null,null,null,"２　浦添市にある営業所（本店又は支店等）にて実際に勤務している従業者数"]
[null,null,null,null,null,null,"（　　　　　人）"]

{"sheet":"様式第4号","index":4,"n_rows":50,"n_cols":14,"rows_kept":50,"cut":false,"hidden":false,"merged":[[28,0,49,3],[28,5,29,51],[49,4,49,12],[49,13,49,53],[50,1,51,52],[1,0,1,6],[2,0,3,53],[4,0,27,3],[4,5,5,52],[26,4,26,12],[26,13,26,53],[27,4,27,12],[27,13,27,53]]}
["様式第4号"]
[]
["営業所等の写真"]
[]
["営業所等の外観写真",null,null,null,null,"【本市にある営業所等（本店又は支店等）の外観（看板又は表札を含むこと。）の状況が分かる鮮明なカラー写真を貼り付けてください。】※鮮明な画像であれば、カラープリンタでの印刷も可とする。モノクロは不可。"]
[]
[]
[]
[]
[]
[]
[]
[]
[]
[]
[]
[]
[]
[]
[]
[]
[]
[]
[]
[]
[]
[null,null,null,null,"建物の状況",null,null,null,null,null,null,null,null,"　□独立した事業所　　□テナントビル内　　□戸建住宅、マンション内"]
[null,null,null,null,"看板等の設置",null,null,null,null,null,null,null,null,"　□看板　　　　　　　□表札　　　　　　　□その他（　　　　　　　　）"]
["営業所等の内部写真",null,null,null,null,"【本市にある営業所等の内部の状況（本店又は支店等としての機能を備えていること。）が分かる鮮明なカラー写真を貼り付けてください。】※鮮明な画像であれば、カラープリンタでの印刷も可とする。モノクロは不可"]
[]
[]
[]
[]
[]
[]
[]
[]
[]
[]
[]
[]
[]
[]
[]
[]
[]
[]
[]
[]
[null,null,null,null,"設備等",null,null,null,null,null,null,null,null,"　□電話　□FAX　□パソコン　□プリンタ　□コピー機　□事務用机・椅子"]

{"sheet":"様式第５号","index":5,"n_rows":50,"n_cols":59,"rows_kept":50,"cut":false,"hidden":false,"merged":[[26,26,26,27],[27,0,27,8],[28,0,28,8],[27,16,27,24],[28,16,28,24],[28,25,28,29],[26,14,26,15],[0,0,0,4],[7,16,7,25],[14,1,14,4],[14,5,14,15],[14,16,14,20],[14,21,14,31],[13,0,24,0],[2,0,3,4],[2,5,3,15],[2,16,3,20],[1,0,1,31],[7,26,8,27],[7,28,8,29],[7,30,8,31],[9,26,9,27],[9,28,9,29],[2,21,3,31],[2,33,3,60],[4,0,12,0],[4,1,4,4],[4,5,4,15],[4,16,4,20],[4,21,4,31],[4,33,5,34],[5,1,6,4],[5,5,6,15],[5,16,5,20],[5,21,5,31],[4,35,5,39],[4,40,5,41],[4,42,5,51],[4,52,4,54],[4,55,4,57],[4,58,4,60],[5,52,5,54],[5,55,5,57],[5,58,5,60],[6,52,6,54],[6,55,6,57],[6,58,6,60],[7,1,7,4],[7,40,7,41],[7,42,7,51],[7,52,7,54],[7,55,7,57],[6,16,6,20],[6,21,6,31],[6,33,13,34],[6,35,7,39],[6,40,6,41],[6,42,6,51],[9,40,9,41],[9,42,9,51],[10,40,10,41],[10,42,10,51],[9,30,9,31],[8,16,9,25],[11,55,11,57],[13,42,13,51],[13,52,13,54],[13,55,13,57],[10,35,13,39],[7,58,7,60],[13,40,13,41],[13,58,13,60],[8,35,9,39],[8,40,8,41],[8,42,8,51],[8,52,8,54],[8,55,8,57],[8,58,8,60],[9,52,9,54],[9,55,9,57],[9,58,9,60],[11,58,11,60],[12,40,12,41],[12,42,12,51],[12,52,12,54],[12,55,12,57],[12,58,12,60],[10,52,10,54],[10,55,10,57],[10,58,10,60],[11,40,11,41],[11,42,11,51],[11,52,11,54],[16,55,16,57],[19,33,21,34],[19,35,19,39],[19,40,19,41],[19,42,19,51],[19,52,19,54],[14,33,18,34],[14,35,15,39],[14,42,14,51],[14,52,14,54],[14,55,14,57],[14,58,14,60],[16,16,16,20],[16,21,16,31],[15,40,15,41],[15,42,15,51],[15,52,15,54],[15,55,15,57],[15,58,15,60],[17,1,17,4],[16,35,17,39],[16,40,16,41],[16,42,16,51],[16,58,16,60],[17,42,17,51],[17,52,17,54],[17,55,17,57],[17,58,17,60],[14,40,14,41],[17,40,17,41],[15,1,16,4],[15,5,16,15],[15,16,15,20],[15,21,15,31],[16,52,16,54],[18,35,18,39],[18,40,18,41],[18,42,18,51],[18,52,18,54],[18,55,18,57],[18,58,18,60],[19,55,19,57],[21,40,21,41],[21,42,21,51],[21,52,21,54],[21,55,21,57],[21,58,21,60],[19,58,19,60],[20,35,21,39],[20,40,20,41],[20,42,20,51],[20,52,20,54],[20,55,20,57],[20,58,20,60],[22,55,22,57],[22,58,22,60],[23,35,23,39],[23,40,23,41],[22,33,23,34],[22,35,22,39],[22,40,22,41],[22,42,22,51],[22,52,22,54],[23,42,23,51],[23,52,23,54],[23,55,23,57],[23,58,23,60],[25,40,25,41],[25,42,25,51],[25,52,25,54],[25,55,25,57],[27,42,27,51],[27,52,27,54],[27,55,27,57],[27,58,27,60],[28,33,28,60],[24,33,25,34],[24,35,24,39],[24,40,24,41],[24,42,24,51],[24,52,24,54],[24,55,24,57],[24,58,24,60],[25,58,25,60],[25,35,25,39],[26,33,27,34],[26,35,27,39],[26,40,26,41],[26,42,26,51],[29,33,30,60],[26,52,26,54],[26,55,26,57],[26,58,26,60],[27,40,27,41],[31,33,31,60],[38,0,38,9],[41,0,41,9],[41,10,41,15],[41,26,42,31],[42,10,42,15],[42,16,42,25],[37,10,37,15],[33,33,34,60],[38,10,38,15],[39,26,39,31],[40,0,40,9],[32,0,33,9],[32,10,33,15],[32,16,33,25],[32,26,33,31],[32,33,32,60],[49,0,49,9],[49,10,49,15],[44,0,44,9],[34,10,34,15],[34,16,34,25],[36,0,36,9],[45,0,45,9],[45,10,45,15],[44,26,44,31],[46,10,46,15],[48,0,48,9],[35,10,36,15],[39,10,40,15],[34,0,34,9],[37,0,37,9],[42,0,42,9],[43,10,44,15],[47,10,48,15],[46,0,46,9],[43,2,43,3],[47,2,47,3],[43,6,43,9],[47,6,47,9],[35,2,35,3],[8,1,11,4],[10,16,10,20],[11,16,11,20],[10,21,10,31],[11,21,11,31],[12,5,12,31],[17,16,19,31],[13,1,13,15],[13,18,13,21],[12,1,12,4],[35,6,35,9],[39,2,39,3],[39,6,39,9],[18,1,21,4],[26,0,26,8],[20,16,20,20],[20,21,20,31],[21,16,21,20],[21,21,21,31],[22,5,22,31],[26,30,26,31],[29,0,29,31],[22,1,22,4],[23,1,24,31],[28,30,28,31],[25,0,25,4],[25,5,25,8],[25,10,25,17],[25,18,25,21],[25,22,25,23],[25,24,25,27],[25,28,25,30],[26,10,26,11],[26,16,26,24]]}
["様式第５号"]
["電算入力表 （建設工事関係）"]
["※受付番号",null,null,null,null,null,null,null,null,null,null,null,null,null,null,null,"浦添市登録番号\n(更新者のみ)",null,null,null,null,null,null,null,null,null,null,null,null,null,null,null,null,"有資格者職員数調書（委任している場合は、委任先の営業所等の人数）"]
[]
["登記上の本店情報（申請者）","（フリガナ）",null,null,null,null,null,null,null,null,null,null,null,null,null,null,"役職名",null,null,null,null,null,null,null,null,null,null,null,null,null,null,null,null,"業種",null,"区分",null,null,null,null,"コード",null,"資　格　名",null,null,null,null,null,null,null,null,null,"人数（A）",null,null,"人数（B）",null,null,"（A)＋(B）"]
[null,"商号又は名称",null,null,null,null,null,null,null,null,null,null,null,null,null,null,"（フリガナ）",null,null,null,null,null,null,null,null,null,null,null,null,null,null,null,null,null,null,null,null,null,null,null,null,null,null,null,null,null,null,null,null,null,null,null,"（現場配置）",null,null,"(経営管理等)",null,null,"合計人数"]
[null,null,null,null,null,null,null,null,null,null,null,null,null,null,null,null,"代表者の氏名",null,null,null,null,null,null,null,null,null,null,null,null,null,null,null,null,"土木",null,"1級技術者",null,null,null,null,111,null,"１級建設機械施工技士",null,null,null,null,null,null,null,null,null,null,null,null,null,null,null,{"$f":"SUM(BA7:BF7)","v":0}]
[null,"郵便番号",null,null,null,null,null,null,"－",null,null,null,null,null,null,null,"所在地区分（☑をつける。）",null,null,null,null,null,null,null,null,null,"市内",null,"市外",null,"県外",null,null,null,null,null,null,null,null,null,113,null,"１級土木施工管理技士",null,null,null,null,null,null,null,null,null,null,null,null,null,null,null,{"$f":"SUM(BA8:BF8)","v":0}]
[null,"所在地",null,null,null,null,null,null,null,null,null,null,null,null,null,null,"(注)所在地区分の詳細は要綱のP１をご確認ください。",null,null,null,null,null,null,null,null,null,null,null,null,null,null,null,null,null,null,"2級技術者",null,null,null,null,212,null,"２級建設機械施工技士",null,null,null,null,null,null,null,null,null,null,null,null,null,null,null,0]
[null,null,null,null,null,null,null,null,null,null,null,null,null,null,null,null,null,null,null,null,null,null,null,null,null,null,null,null,null,null,null,null,null,null,null,null,null,null,null,null,214,null,"２級土木施工管理技士（土木）",null,null,null,null,null,null,null,null,null,null,null,null,null,null,null,0]
[null,null,null,null,null,null,null,null,null,null,null,null,null,null,null,null,"電話番号",null,null,null,null,null,null,null,null,null,null,null,null,null,null,null,null,null,null,"技術士（土木）",null,null,null,null,709,null,"技術士：建設部門",null,null,null,null,null,null,null,null,null,null,null,null,null,null,null,0]
[null,null,null,null,null,null,null,null,null,null,null,null,null,null,null,null,"FAX",null,null,null,null,null,null,null,null,null,null,null,null,null,null,null,null,null,null,null,null,null,null,null,712,null,"技術士：農業部門",null,null,null,null,null,null,null,null,null,null,null,null,null,null,null,0]
[null,"Eメールアドレス",null,null,null,null,null,null,null,null,null,null,null,null,null,null,null,null,null,null,null,null,null,null,null,null,null,null,null,null,null,null,null,null,null,null,null,null,null,null,713,null,"技術士：森林部門",null,null,null,null,null,null,null,null,null,null,null,null,null,null,null,0]
["代理人情報（受任者）※","営業所の区分（該当するものに☑してください）",null,null,null,null,null,null,null,null,null,null,null,null,null,null,null,null,"主たる営業所",null,null,null,null,"・",null,null,"従たる営業所",null,null,null,null,null,null,null,null,null,null,null,null,null,714,null,"技術士：水産部門",null,null,null,null,null,null,null,null,null,null,null,null,null,null,null,0]
[null,"（フリガナ）",null,null,null,null,null,null,null,null,null,null,null,null,null,null,"役職名",null,null,null,null,null,null,null,null,null,null,null,null,null,null,null,null,"建築",null,"1級技術者",null,null,null,null,120,null,"１級建築施工管理技士",null,null,null,null,null,null,null,null,null,null,null,null,null,null,null,0]
[null,"支店、営業所等の名称",null,null,null,null,null,null,null,null,null,null,null,null,null,null,"（フリガナ）",null,null,null,null,null,null,null,null,null,null,null,null,null,null,null,null,null,null,null,null,null,null,null,137,null,"１級建築士",null,null,null,null,null,null,null,null,null,null,null,null,null,null,null,0]
[null,null,null,null,null,null,null,null,null,null,null,null,null,null,null,null,"支店長等の氏名",null,null,null,null,null,null,null,null,null,null,null,null,null,null,null,null,null,null,"2級技術者",null,null,null,null,221,null,"２級建築施工管理技士",null,null,null,null,null,null,null,null,null,null,null,null,null,null,null,0]
[null,"郵便番号",null,null,null,null,null,null,"－",null,null,null,null,null,null,null,"※代理人情報の欄は、県外事業者又は沖縄県内離島事業所に限り、支店長等へ契約に関する権限（見積、入札、契約締結等）を通年委任する場合にのみ記入してください。\n※委任をしている場合、市はその委任先と見積、入札、契約等についてのやり取りを行います。",null,null,null,null,null,null,null,null,null,null,null,null,null,null,null,null,null,null,null,null,null,null,null,238,null,"２級建築士",null,null,null,null,null,null,null,null,null,null,null,null,null,null,null,0]
[null,"所在地",null,null,null,null,null,null,null,null,null,null,null,null,null,null,null,null,null,null,null,null,null,null,null,null,null,null,null,null,null,null,null,null,null,"積算士",null,null,null,null,"076",null,"建築積算士（建築コスト管理士含む）",null,null,null,null,null,null,null,null,null,null,null,null,null,null,null,0]
[null,null,null,null,null,null,null,null,null,null,null,null,null,null,null,null,null,null,null,null,null,null,null,null,null,null,null,null,null,null,null,null,null,"電気",null,"1級技術者",null,null,null,null,127,null,"１級電気工事施工管理技士",null,null,null,null,null,null,null,null,null,null,null,null,null,null,null,0]
[null,null,null,null,null,null,null,null,null,null,null,null,null,null,null,null,"電話番号",null,null,null,null,null,null,null,null,null,null,null,null,null,null,null,null,null,null,"2級技術者",null,null,null,null,228,null,"２級電気工事施工管理技士",null,null,null,null,null,null,null,null,null,null,null,null,null,null,null,0]
[null,null,null,null,null,null,null,null,null,null,null,null,null,null,null,null,"FAX",null,null,null,null,null,null,null,null,null,null,null,null,null,null,null,null,null,null,null,null,null,null,null,155,null,"第一種電気工事士",null,null,null,null,null,null,null,null,null,null,null,null,null,null,null,0]
[null,"Eメールアドレス",null,null,null,null,null,null,null,null,null,null,null,null,null,null,null,null,null,null,null,null,null,null,null,null,null,null,null,null,null,null,null,"管",null,"1級技術者",null,null,null,null,129,null,"１級管工事施工管理技士",null,null,null,null,null,null,null,null,null,null,null,null,null,null,null,0]
[null,"（注意）現在、指名通知に係る連絡をメールで行っております。そのため、確実に通知書が受け取れる営業所のEメールアドレスの記入をお願いします。",null,null,null,null,null,null,null,null,null,null,null,null,null,null,null,null,null,null,null,null,null,null,null,null,null,null,null,null,null,null,null,null,null,"2級技術者",null,null,null,null,230,null,"２級管工事施工管理技士",null,null,null,null,null,null,null,null,null,null,null,null,null,null,null,0]
[null,null,null,null,null,null,null,null,null,null,null,null,null,null,null,null,null,null,null,null,null,null,null,null,null,null,null,null,null,null,null,null,null,"造園",null,"1級技術者",null,null,null,null,133,null,"１級造園施工管理技士",null,null,null,null,null,null,null,null,null,null,null,null,null,null,null,0]
["営業年数",null,null,null,null,null,null,null,null,"年","自己資本額（経審より転記）",null,null,null,null,null,null,null,null,null,null,null,"千円",null,"決算月",null,null,null,null,null,null,"月",null,null,null,"2級技術者",null,null,null,null,234,null,"２級造園施工管理技士",null,null,null,null,null,null,null,null,null,null,null,null,null,null,null,0]
["建設業退職金共済組合",null,null,null,null,null,null,null,null,null,"加入",null,"・",null,"未加入",null,"建設業労働災害防止協会",null,null,null,null,null,null,null,null,null,"加入",null,"・",null,"未加入",null,null,"水道\n施設",null,"技術士（土木）",null,null,null,null,710,null,"技術士：上下水道部門",null,null,null,null,null,null,null,null,null,null,null,null,null,null,null,0]
["ISO9000S取得の有無",null,null,null,null,null,null,null,null,null,"有",null,"・",null,"無",null,"ISO14000S取得の有無",null,null,null,null,null,null,null,null,null,"有",null,"・",null,"無",null,null,null,null,null,null,null,null,null,711,null,"技術士：衛生工学部門",null,null,null,null,null,null,null,null,null,null,null,null,null,null,null,0]
["障がい者雇用の有無",null,null,null,null,null,null,null,null,null,"有",null,"・",null,"無",null,"職員総数（正職員）",null,null,null,null,null,null,null,null,null,null,null,null,null,"人"]
["登　録　希　望　業　種",null,null,null,null,null,null,null,null,null,null,null,null,null,null,null,null,null,null,null,null,null,null,null,null,null,null,null,null,null,null,null,null,"※本店情報（申請者）には、法人にあっては登記上の所在地、個人にあっては、営業の本拠となる所在地を記入してください。"]
["※経営事項審査及び建設業許可を受けている業種のうち、登録を希望する業種を☑してください。"]
["※経営事項審査の総合評定値（P）と完工高の両方が無ければ希望できません。",null,null,null,null,null,null,null,null,null,null,null,null,null,null,null,null,null,null,null,null,null,null,null,null,null,null,null,null,null,null,null,null,"※有資格職員数は令和６年12月１日を基準日とします。"]
["建設業許可区分　　　　　　\n※知事・国土交通大臣の区分を☑\nしてください。",null,null,null,null,null,null,null,null,null,"建設業許可\n有効期間(５年)",null,null,null,null,null,"建設工事の種類（業種）",null,null,null,null,null,null,null,null,null,"経営事項審査\n有効期間(１年７月)",null,null,null,null,null,null,"※上記資格以外の資格は記入しないでください。（編集不可）"]
[null,null,null,null,null,null,null,null,null,null,null,null,null,null,null,null,null,null,null,null,null,null,null,null,null,null,null,null,null,null,null,null,null,"※「（現場配置）」の欄には現場専任配置技術者（様式第２号）の人数を、「（経営管理等）」の欄には経営管理責任者及び専任技術者（様式第９号）の人数をのそれぞれ記入し、合計人数欄で合計してください。ただし、有資格者職員数調書に記載の無い資格については、人数の記入は不要です。"]
["一般建設業許可",null,null,null,null,null,null,null,null,null,"令和  年  月  日",null,null,null,null,null,"一般建設業許可"]
[null,null,"知事",null,"・",null,"国土交通大臣",null,null,null,"～",null,null,null,null,null,null,"土・",null,"建・",null,"大・",null,"左・",null,"と"]
["(第　　　　　　号 )",null,null,null,null,null,null,null,null,null,null,null,null,null,null,null,null,"石・",null,"屋・",null,"電・",null,"管・",null,"タ"]
[null,null,null,null,null,null,null,null,null,null,"令和  年  月  日",null,null,null,null,null,null,"鋼・",null,"筋・",null,"ほ・",null,"し・",null,"板"]
["一般建設業許可",null,null,null,null,null,null,null,null,null,"令和  年  月  日",null,null,null,null,null,null,"ガ・",null,"塗・",null,"防・",null,"内・",null,"機"]
[null,null,"知事",null,"・",null,"国土交通大臣",null,null,null,"～",null,null,null,null,null,null,"絶・",null,"通・",null,"園・",null,"井・",null,"具","令和  年  月  日"]
["(第　　　　　　号 )",null,null,null,null,null,null,null,null,null,null,null,null,null,null,null,null,"水・",null,"消・",null,"清・",null,"解・"]
[null,null,null,null,null,null,null,null,null,null,"令和  年  月  日",null,null,null,null,null,null,null,null,null,null,null,null,null,null,null,"～"]
["特定建設業許可",null,null,null,null,null,null,null,null,null,"令和  年  月  日",null,null,null,null,null,"特定建設業許可"]
[null,null,"知事",null,"・",null,"国土交通大臣",null,null,null,"～",null,null,null,null,null,null,"土・",null,"建・",null,"大・",null,"左・",null,"と"]
["(第　　　　　　号 )",null,null,null,null,null,null,null,null,null,null,null,null,null,null,null,null,"石・",null,"屋・",null,"電・",null,"管・",null,"タ","令和  年  月  日"]
[null,null,null,null,null,null,null,null,null,null,"令和  年  月  日",null,null,null,null,null,null,"鋼・",null,"筋・",null,"ほ・",null,"し・",null,"板"]
["特定建設業許可",null,null,null,null,null,null,null,null,null,"令和  年  月  日",null,null,null,null,null,null,"ガ・",null,"塗・",null,"防・",null,"内・",null,"機"]
[null,null,"知事",null,"・",null,"国土交通大臣",null,null,null,"～",null,null,null,null,null,null,"絶・",null,"通・",null,"園・",null,"井・",null,"具"]
["(第　　　　　　号 )",null,null,null,null,null,null,null,null,null,null,null,null,null,null,null,null,"水・",null,"消・",null,"清・",null,"解・"]
[null,null,null,null,null,null,null,null,null,null,"令和  年  月  日"]

{"sheet":"様式第５号 (記載例)","index":6,"n_rows":50,"n_cols":59,"rows_kept":50,"cut":false,"hidden":false,"merged":[[0,0,0,4],[1,0,1,31],[2,0,3,4],[2,5,3,15],[2,16,3,20],[2,21,3,31],[2,33,3,60],[4,0,12,0],[4,1,4,4],[4,5,4,15],[4,16,4,20],[4,21,4,31],[4,33,5,34],[4,35,5,39],[4,40,5,41],[4,42,5,51],[4,52,4,54],[4,55,4,57],[4,58,4,60],[5,1,6,4],[5,5,6,15],[5,16,5,20],[5,21,5,31],[5,52,5,54],[5,55,5,57],[5,58,5,60],[6,52,6,54],[6,55,6,57],[6,58,6,60],[7,1,7,4],[7,16,7,25],[7,26,8,27],[7,28,8,29],[7,30,8,31],[7,40,7,41],[7,42,7,51],[6,16,6,20],[6,21,6,31],[6,33,13,34],[6,35,7,39],[6,40,6,41],[6,42,6,51],[10,16,10,20],[10,21,10,31],[10,35,13,39],[10,40,10,41],[7,52,7,54],[7,55,7,57],[7,58,7,60],[8,1,11,4],[8,16,9,25],[8,35,9,39],[8,40,8,41],[8,42,8,51],[8,52,8,54],[8,55,8,57],[8,58,8,60],[9,26,9,27],[9,28,9,29],[9,30,9,31],[9,40,9,41],[9,42,9,51],[9,52,9,54],[9,55,9,57],[9,58,9,60],[11,58,11,60],[12,40,12,41],[12,42,12,51],[12,52,12,54],[12,55,12,57],[12,58,12,60],[10,42,10,51],[10,52,10,54],[10,55,10,57],[10,58,10,60],[11,40,11,41],[11,42,11,51],[11,52,11,54],[11,55,11,57],[13,55,13,57],[13,58,13,60],[14,1,14,4],[14,5,14,15],[14,16,14,20],[14,21,14,31],[14,33,18,34],[14,35,15,39],[14,40,14,41],[14,42,14,51],[13,1,13,15],[13,18,13,21],[13,40,13,41],[13,42,13,51],[13,52,13,54],[14,52,14,54],[17,1,17,4],[17,40,17,41],[17,42,17,51],[14,55,14,57],[14,58,14,60],[15,1,16,4],[15,5,16,15],[15,16,15,20],[15,21,15,31],[15,40,15,41],[15,42,15,51],[15,52,15,54],[15,55,15,57],[15,58,15,60],[16,16,16,20],[16,21,16,31],[16,35,17,39],[16,40,16,41],[16,42,16,51],[16,52,16,54],[16,55,16,57],[16,58,16,60],[17,16,19,31],[17,52,17,54],[17,55,17,57],[17,58,17,60],[19,35,19,39],[19,40,19,41],[19,42,19,51],[19,52,19,54],[19,55,19,57],[20,16,20,20],[20,21,20,31],[20,35,21,39],[20,40,20,41],[20,42,20,51],[20,52,20,54],[20,55,20,57],[20,58,20,60],[21,16,21,20],[19,33,21,34],[18,35,18,39],[18,40,18,41],[18,42,18,51],[18,52,18,54],[18,55,18,57],[18,58,18,60],[21,21,21,31],[21,40,21,41],[21,42,21,51],[21,52,21,54],[21,55,21,57],[21,58,21,60],[19,58,19,60],[24,33,25,34],[24,35,24,39],[24,40,24,41],[22,52,22,54],[22,55,22,57],[22,58,22,60],[23,1,24,31],[23,35,23,39],[23,40,23,41],[23,42,23,51],[23,52,23,54],[23,55,23,57],[23,58,23,60],[22,1,22,4],[22,5,22,31],[22,33,23,34],[22,35,22,39],[22,40,22,41],[22,42,22,51],[24,58,24,60],[24,42,24,51],[24,52,24,54],[24,55,24,57],[25,42,25,51],[25,52,25,54],[25,55,25,57],[13,0,24,0],[25,58,25,60],[26,0,26,8],[26,10,26,11],[26,14,26,15],[26,16,26,24],[26,26,26,27],[26,30,26,31],[26,33,27,34],[26,35,27,39],[26,40,26,41],[27,58,27,60],[25,0,25,4],[25,5,25,8],[25,10,25,17],[25,18,25,21],[25,22,25,23],[25,24,25,27],[25,28,25,30],[25,35,25,39],[25,40,25,41],[28,16,28,24],[28,25,28,29],[28,30,28,31],[28,33,28,60],[26,42,26,51],[26,52,26,54],[26,55,26,57],[26,58,26,60],[27,0,27,8],[27,16,27,24],[27,40,27,41],[27,42,27,51],[27,52,27,54],[27,55,27,57],[34,16,34,25],[35,2,35,3],[35,6,35,9],[35,10,36,15],[36,0,36,9],[29,0,29,31],[29,33,30,60],[31,33,31,60],[32,0,33,9],[32,10,33,15],[32,16,33,25],[32,26,33,31],[32,33,32,60],[33,33,34,60],[34,0,34,9],[44,26,44,31],[45,0,45,9],[45,10,45,15],[39,26,39,31],[40,0,40,9],[41,0,41,9],[41,10,41,15],[41,26,42,31],[42,0,42,9],[42,10,42,15],[42,16,42,25],[39,2,39,3],[39,6,39,9],[39,10,40,15],[49,0,49,9],[49,10,49,15],[8,5,11,15],[46,0,46,9],[46,10,46,15],[47,2,47,3],[47,6,47,9],[47,10,48,15],[48,0,48,9],[43,2,43,3],[43,6,43,9],[43,10,44,15],[44,0,44,9],[37,0,37,9],[37,10,37,15],[38,0,38,9],[38,10,38,15],[34,10,34,15],[28,0,28,8],[18,1,21,4],[12,1,12,4],[12,5,12,31],[11,16,11,20],[11,21,11,31]]}
["様式第５号"]
["電算入力表 （建設工事関係）"]
["※受付番号",null,null,null,null,"記入しないでください。",null,null,null,null,null,null,null,null,null,null,"浦添市登録番号\n(更新者のみ)",null,null,null,null,1,null,null,null,null,null,null,null,null,null,null,null,"有資格者職員数調書（委任している場合は、委任先の営業所等の人数）"]
[]
["登記上の本店情報（申請者）","（フリガナ）",null,null,null,"ウラソエコウムテン",null,null,null,null,null,null,null,null,null,null,"役職名",null,null,null,null,"代表取締役",null,null,null,null,null,null,null,null,null,null,null,"業種",null,"区分",null,null,null,null,"コード",null,"資　格　名",null,null,null,null,null,null,null,null,null,"人数（A）",null,null,"人数（B）",null,null,"（A)＋(B）"]
[null,"商号又は名称",null,null,null,"株式会社 浦添工務店",null,null,null,null,null,null,null,null,null,null,"（フリガナ）",null,null,null,null,"ウラソエ　タロウ",null,null,null,null,null,null,null,null,null,null,null,null,null,null,null,null,null,null,null,null,null,null,null,null,null,null,null,null,null,null,"（現場配置）",null,null,"(経営管理等)",null,null,"合計人数"]
[null,null,null,null,null,null,null,null,null,null,null,null,null,null,null,null,"代表者の氏名",null,null,null,null,"浦添　太郎",null,null,null,null,null,null,null,null,null,null,null,"土木",null,"1級技術者",null,null,null,null,111,null,"１級建設機械施工技士",null,null,null,null,null,null,null,null,null,null,null,null,null,null,null,{"$f":"SUM(BA7:BF7)","v":0}]
[null,"郵便番号",null,null,null,9,0,1,"－",2,5,0,1,null,null,null,"所在地区分（☑をつける。）",null,null,null,null,null,null,null,null,null,"市内",null,"市外",null,"県外",null,null,null,null,null,null,null,null,null,113,null,"１級土木施工管理技士",null,null,null,null,null,null,null,null,null,2,null,null,null,null,null,{"$f":"SUM(BA8:BF8)","v":2}]
[null,"所在地",null,null,null,"浦添市安波茶１－１－１",null,null,null,null,null,null,null,null,null,null,"(注)所在地区分の詳細は要綱のP１をご確認ください。",null,null,null,null,null,null,null,null,null,null,null,null,null,null,null,null,null,null,"2級技術者",null,null,null,null,212,null,"２級建設機械施工技士",null,null,null,null,null,null,null,null,null,null,null,null,null,null,null,0]
[null,null,null,null,null,null,null,null,null,null,null,null,null,null,null,null,null,null,null,null,null,null,null,null,null,null,null,null,null,null,null,null,null,null,null,null,null,null,null,null,214,null,"２級土木施工管理技士（土木）",null,null,null,null,null,null,null,null,null,null,null,null,2,null,null,2]
[null,null,null,null,null,null,null,null,null,null,null,null,null,null,null,null,"電話番号",null,null,null,null,"　　098　－　876　－　1234",null,null,null,null,null,null,null,null,null,null,null,null,null,"技術士（土木）",null,null,null,null,709,null,"技術士：建設部門",null,null,null,null,null,null,null,null,null,null,null,null,null,null,null,0]
[null,null,null,null,null,null,null,null,null,null,null,null,null,null,null,null,"FAX",null,null,null,null,"　　098　－　876　－　7071",null,null,null,null,null,null,null,null,null,null,null,null,null,null,null,null,null,null,712,null,"技術士：農業部門",null,null,null,null,null,null,null,null,null,null,null,null,null,null,null,0]
[null,"Eメールアドレス",null,null,null,"urasoekoumutensoumul@urasoekoumu.01234.com",null,null,null,null,null,null,null,null,null,null,null,null,null,null,null,null,null,null,null,null,null,null,null,null,null,null,null,null,null,null,null,null,null,null,713,null,"技術士：森林部門",null,null,null,null,null,null,null,null,null,null,null,null,null,null,null,0]
["代理人情報（受任者）※","営業所の区分（該当するものに☑してください）",null,null,null,null,null,null,null,null,null,null,null,null,null,null,null,null,"主たる営業所",null,null,null,null,"・",null,null,"従たる営業所",null,null,null,null,null,null,null,null,null,null,null,null,null,714,null,"技術士：水産部門",null,null,null,null,null,null,null,null,null,null,null,null,null,null,null,0]
[null,"（フリガナ）",null,null,null,null,null,null,null,null,null,null,null,null,null,null,"役職名",null,null,null,null,null,null,null,null,null,null,null,null,null,null,null,null,"建築",null,"1級技術者",null,null,null,null,120,null,"１級建築施工管理技士",null,null,null,null,null,null,null,null,null,1,null,null,1,null,null,2]
[null,"支店、営業所等の名称",null,null,null,null,null,null,null,null,null,null,null,null,null,null,"（フリガナ）",null,null,null,null,null,null,null,null,null,null,null,null,null,null,null,null,null,null,null,null,null,null,null,137,null,"１級建築士",null,null,null,null,null,null,null,null,null,null,null,null,null,null,null,0]
[null,null,null,null,null,null,null,null,null,null,null,null,null,null,null,null,"支店長等の氏名",null,null,null,null,null,null,null,null,null,null,null,null,null,null,null,null,null,null,"2級技術者",null,null,null,null,221,null,"２級建築施工管理技士",null,null,null,null,null,null,null,null,null,3,null,null,null,null,null,3]
[null,"郵便番号",null,null,null,null,null,null,"－",null,null,null,null,null,null,null,"※代理人情報の欄は、県外事業者又は沖縄県内離島事業所に限り、支店長等へ契約に関する権限（見積、入札、契約締結等）を通年委任する場合にのみ記入してください。\n※委任をしている場合、市はその委任先と見積、入札、契約等についてのやり取りを行います。",null,null,null,null,null,null,null,null,null,null,null,null,null,null,null,null,null,null,null,null,null,null,null,238,null,"２級建築士",null,null,null,null,null,null,null,null,null,null,null,null,null,null,null,0]
[null,"所在地",null,null,null,null,null,null,null,null,null,null,null,null,null,null,null,null,null,null,null,null,null,null,null,null,null,null,null,null,null,null,null,null,null,"積算士",null,null,null,null,"076",null,"建築積算士（建築コスト管理士含む）",null,null,null,null,null,null,null,null,null,null,null,null,null,null,null,0]
[null,null,null,null,null,null,null,null,null,null,null,null,null,null,null,null,null,null,null,null,null,null,null,null,null,null,null,null,null,null,null,null,null,"電気",null,"1級技術者",null,null,null,null,127,null,"１級電気工事施工管理技士",null,null,null,null,null,null,null,null,null,null,null,null,null,null,null,0]
[null,null,null,null,null,null,null,null,null,null,null,null,null,null,null,null,"電話番号",null,null,null,null,null,null,null,null,null,null,null,null,null,null,null,null,null,null,"2級技術者",null,null,null,null,228,null,"２級電気工事施工管理技士",null,null,null,null,null,null,null,null,null,null,null,null,null,null,null,0]
[null,null,null,null,null,null,null,null,null,null,null,null,null,null,null,null,"FAX",null,null,null,null,null,null,null,null,null,null,null,null,null,null,null,null,null,null,null,null,null,null,null,155,null,"第一種電気工事士",null,null,null,null,null,null,null,null,null,null,null,null,null,null,null,0]
[null,"Eメールアドレス",null,null,null,null,null,null,null,null,null,null,null,null,null,null,null,null,null,null,null,null,null,null,null,null,null,null,null,null,null,null,null,"管",null,"1級技術者",null,null,null,null,129,null,"１級管工事施工管理技士",null,null,null,null,null,null,null,null,null,null,null,null,null,null,null,0]
[null,"（注意）現在、指名通知に係る連絡をメールで行っております。そのため、確実に通知書が受け取れる営業所のEメールアドレスの記入をお願いします。",null,null,null,null,null,null,null,null,null,null,null,null,null,null,null,null,null,null,null,null,null,null,null,null,null,null,null,null,null,null,null,null,null,"2級技術者",null,null,null,null,230,null,"２級管工事施工管理技士",null,null,null,null,null,null,null,null,null,null,null,null,null,null,null,0]
[null,null,null,null,null,null,null,null,null,null,null,null,null,null,null,null,null,null,null,null,null,null,null,null,null,null,null,null,null,null,null,null,null,"造園",null,"1級技術者",null,null,null,null,133,null,"１級造園施工管理技士",null,null,null,null,null,null,null,null,null,null,null,null,null,null,null,0]
["営業年数",null,null,null,null,10,null,null,null,"年","自己資本額（経審より転記）",null,null,null,null,null,null,null,12345,null,null,null,"千円",null,"決算月",null,null,null,3,null,null,"月",null,null,null,"2級技術者",null,null,null,null,234,null,"２級造園施工管理技士",null,null,null,null,null,null,null,null,null,null,null,null,null,null,null,0]
["建設業退職金共済組合",null,null,null,null,null,null,null,null,null,"加入",null,"・",null,"未加入",null,"建設業労働災害防止協会",null,null,null,null,null,null,null,null,null,"加入",null,"・",null,"未加入",null,null,"水道\n施設",null,"技術士（土木）",null,null,null,null,710,null,"技術士：上下水道部門",null,null,null,null,null,null,null,null,null,null,null,null,null,null,null,0]
["ISO9000S取得の有無",null,null,null,null,null,null,null,null,null,"有",null,"・",null,"無",null,"ISO14000S取得の有無",null,null,null,null,null,null,null,null,null,"有",null,"・",null,"無",null,null,null,null,null,null,null,null,null,711,null,"技術士：衛生工学部門",null,null,null,null,null,null,null,null,null,null,null,null,null,null,null,0]
["障がい者雇用の有無",null,null,null,null,null,null,null,null,null,"有",null,"・",null,"無",null,"職員総数（正職員）",null,null,null,null,null,null,null,null,null,null,null,null,null,"人"]
["登　録　希　望　業　種",null,null,null,null,null,null,null,null,null,null,null,null,null,null,null,null,null,null,null,null,null,null,null,null,null,null,null,null,null,null,null,null,"※本店情報（申請者）には、法人にあっては登記上の所在地、個人にあっては、営業の本拠となる所在地を記入してください。"]
["※経営事項審査及び建設業許可を受けている業種のうち、登録を希望する業種を☑してください。"]
["※経営事項審査の総合評定値（P）と完工高の両方が無ければ希望できません。",null,null,null,null,null,null,null,null,null,null,null,null,null,null,null,null,null,null,null,null,null,null,null,null,null,null,null,null,null,null,null,null,"※有資格職員数は令和６年12月１日を基準日とします。"]
["建設業許可区分　　　　　　\n※知事・国土交通大臣の区分を☑\nしてください。",null,null,null,null,null,null,null,null,null,"建設業許可\n有効期間(５年)",null,null,null,null,null,"建設工事の種類（業種）",null,null,null,null,null,null,null,null,null,"経営事項審査\n有効期間(１年７月)",null,null,null,null,null,null,"※上記資格以外の資格は記入しないでください。（編集不可）"]
[null,null,null,null,null,null,null,null,null,null,null,null,null,null,null,null,null,null,null,null,null,null,null,null,null,null,null,null,null,null,null,null,null,"※「（現場配置）」の欄には現場専任配置技術者（様式第２号）の人数を、「（経営管理等）」の欄には経営管理責任者及び専任技術者（様式第９号）の人数をのそれぞれ記入し、合計人数欄で合計してください。ただし、有資格者職員数調書に記載の無い資格については、人数の記入は不要です。"]
["一般建設業許可",null,null,null,null,null,null,null,null,null,"令和5年 4月 1日",null,null,null,null,null,"一般建設業許可"]
[null,null,"知事",null,"・",null,"国土交通大臣",null,null,null,"～",null,null,null,null,null,null,"土・",null,"建・",null,"大・",null,"左・",null,"と"]
["(第　　　　　　号 )",null,null,null,null,null,null,null,null,null,null,null,null,null,null,null,null,"石・",null,"屋・",null,"電・",null,"管・",null,"タ"]
[null,null,null,null,null,null,null,null,null,null,"令和10年 3月 31日",null,null,null,null,null,null,"鋼・",null,"筋・",null,"ほ・",null,"し・",null,"板"]
["一般建設業許可",null,null,null,null,null,null,null,null,null,"令和５年 4月 1日",null,null,null,null,null,null,"ガ・",null,"塗・",null,"防・",null,"内・",null,"機"]
[null,null,"知事",null,"・",null,"国土交通大臣",null,null,null,"～",null,null,null,null,null,null,"絶・",null,"通・",null,"園・",null,"井・",null,"具","令和5年 6月 30日"]
["(第　　　　　　号 )",null,null,null,null,null,null,null,null,null,null,null,null,null,null,null,null,"水・",null,"消・",null,"清・",null,"解・"]
[null,null,null,null,null,null,null,null,null,null,"令和10年 3月 31日",null,null,null,null,null,null,null,null,null,null,null,null,null,null,null,"～"]
["特定建設業許可",null,null,null,null,null,null,null,null,null,"令和5年 4月 1日",null,null,null,null,null,"特定建設業許可"]
[null,null,"知事",null,"・",null,"国土交通大臣",null,null,null,"～",null,null,null,null,null,null,"土・",null,"建・",null,"大・",null,"左・",null,"と"]
["(第　　　　　　号 )",null,null,null,null,null,null,null,null,null,null,null,null,null,null,null,null,"石・",null,"屋・",null,"電・",null,"管・",null,"タ","令和7年 1月 31日"]
[null,null,null,null,null,null,null,null,null,null,"令和10年 3月 31日",null,null,null,null,null,null,"鋼・",null,"筋・",null,"ほ・",null,"し・",null,"板"]
["特定建設業許可",null,null,null,null,null,null,null,null,null,"令和  年  月  日",null,null,null,null,null,null,"ガ・",null,"塗・",null,"防・",null,"内・",null,"機"]
[null,null,"知事",null,"・",null,"国土交通大臣",null,null,null,"～",null,null,null,null,null,null,"絶・",null,"通・",null,"園・",null,"井・",null,"具"]
["(第　　　　　　号 )",null,null,null,null,null,null,null,null,null,null,null,null,null,null,null,null,"水・",null,"消・",null,"清・",null,"解・"]
[null,null,null,null,null,null,null,null,null,null,"令和  年  月  日"]

{"sheet":"様式第6号","index":7,"n_rows":32,"n_cols":25,"rows_kept":32,"cut":false,"hidden":false,"merged":[[28,1,28,6],[28,7,28,12],[28,13,28,18],[28,19,28,24],[26,1,26,6],[26,7,26,12],[26,13,26,18],[26,19,26,24],[27,1,27,6],[27,7,27,12],[27,13,27,18],[27,19,27,24],[2,0,2,25],[4,0,4,25],[18,1,18,2],[23,1,23,6],[23,7,23,12],[23,13,23,18],[23,19,23,24],[25,1,25,6],[25,7,25,12],[25,13,25,18],[25,19,25,24],[21,0,21,25],[24,1,24,6],[24,7,24,12],[24,13,24,18],[24,19,24,24]]}
["様式第6号　　　　　　　　　　　　　　　　　　　　　　　　　　　　　　　　　　　　　　　　　　　　　　　　　　　　"]
[]
["入札参加資格審査申請書変更届出書（工事）"]
[]
["令和　　　年　　　月　　　日"]
[]
["浦添市長　　殿　   　　　　　　　　　　                               "]
[]
[]
[]
[]
[null,null,null,null,null,null,null,null,null,null,null,null,null,null,null,"所在地"]
[]
[null,null,null,null,null,null,null,null,null,null,null,null,null,null,null,"（フリガナ）"]
[null,null,null,null,null,null,null,null,null,null,null,null,null,"申請者",null,"商号又は名称"]
[]
[null,null,null,null,null,null,null,null,null,null,null,null,null,null,null,"（フリガナ）"]
[null,null,null,null,null,null,null,null,null,null,null,null,null,null,null,"代表者の役職・氏名",null,null,null,null,null,null,null,null,"印"]
[null,"登録番号"]
[]
["　　　　　　　　　　　　　　"]
["　　さきに提出しました令和     年度競争入札参加資格審査申請書について、下記のとおり変更があったのでお届けします。"]
[]
[null,"届　出　事　項",null,null,null,null,null,"変　更　前",null,null,null,null,null,"変　更　後",null,null,null,null,null,"変　更　年　月　日"]
[]
[]
[]
[]
[]
[]
[null,"　１．商号、代表者変更の場合には名称にかなをふってください。"]
[null,"　２．登録番号がわからない場合には空欄のまま提出してください。"]

{"sheet":"様式第7号","index":8,"n_rows":47,"n_cols":13,"rows_kept":47,"cut":false,"hidden":false,"merged":[[1,0,1,18],[6,0,6,18],[21,0,21,18]]}
["様式第7号"]
["令和　　　年　　　月　　　日"]
[]
["浦　添　市　長　　殿"]
[]
[]
["委　任　状"]
[]
[]
[null,"（委任者）"]
[null,"所在地（住所）"]
[null,"商号又は名称"]
[null,"代表者　役職"]
[null,"氏　　　　名",null,null,null,null,null,null,null,null,null,null,"実　印"]
[]
[]
[]
[]
[null,"　私は、下記の者を代理人と定め、次の事項に関する権限を委任します。"]
[]
[]
["記"]
[]
[]
["１　（受任者）"]
[null,"所在地（住所）"]
[null,"商号又は名称"]
[null,"支店等の名称"]
[null,"役　　　　職"]
[null,"氏　　　　名",null,null,null,null,null,null,null,null,null,null,"受任者印"]
[]
[null,null,null,null,null,null,null,null,"(注)受任者印は、様式第８号の使用印と同じ印鑑になります。"]
[]
[]
["２　委任期間"]
[null,"入札参加資格を認定された日から次回名簿登録日の前日まで"]
[]
[]
["３　委任事項"]
[null,"次の契約手続に関する事項"]
[null,"(1)入札及び見積書の提出に関する件"]
[null,"(2)契約締結に関する件"]
[null,"(3)入札保証金及び契約保証金の納付、還付請求及び受領に関する件"]
[null,"(4)契約の履行に関する件"]
[null,"(5)契約解除に関する件"]
[null,"(6)復代理人の選任及び解任に関する件"]
[null,"(7)その他契約手続に関する一切の件"]

{"sheet":"様式第8号","index":9,"n_rows":27,"n_cols":3,"rows_kept":27,"cut":false,"hidden":false,"merged":[[24,1,24,3],[26,1,26,3],[0,0,0,1],[1,0,1,10],[14,2,14,9],[16,1,17,10],[20,1,20,4],[22,1,22,3]]}
["様式第８号"]
["使　用　印　鑑　届"]
[]
[]
[null,"浦　添　市　長　　  殿"]
[]
[]
[]
[]
[]
[]
[]
[]
[]
[null,null,"(注)委任状を提出されている場合は、委任状の受任者印と同じ印鑑になります。"]
[]
[null,"　上の使用印鑑を浦添市との入札、見積り、契約締結その他の契約に関し使用します。"]
[]
[]
[]
[null,"令和　　　年　　　月　　　日"]
[]
[null,"所在地"]
[]
[null,"商号又は名称"]
[]
[null,"代表者の役職・氏名"]

{"sheet":"様式第9号","index":10,"n_rows":25,"n_cols":9,"rows_kept":25,"cut":false,"hidden":false,"merged":[[16,0,16,1],[16,2,16,3],[16,5,16,7],[16,8,16,12],[14,0,14,1],[14,2,14,3],[14,5,14,7],[14,8,14,12],[15,0,15,1],[15,2,15,3],[15,5,15,7],[15,8,15,12],[12,0,12,1],[12,2,12,3],[12,5,12,7],[12,8,12,12],[13,0,13,1],[13,2,13,3],[13,5,13,7],[13,8,13,12],[10,0,10,1],[10,2,10,3],[10,5,10,7],[10,8,10,12],[11,0,11,1],[11,2,11,3],[11,5,11,7],[11,8,11,12],[8,0,8,1],[8,2,8,3],[8,5,8,7],[8,8,8,12],[9,0,9,1],[9,2,9,3],[9,5,9,7],[9,8,9,12],[6,0,6,1],[6,2,6,3],[6,5,6,7],[6,8,6,12],[7,0,7,1],[7,2,7,3],[7,5,7,7],[7,8,7,12],[1,0,1,12],[3,0,5,1],[3,2,4,4],[3,5,5,7],[3,8,5,12],[5,2,5,3]]}
["様式第９号"]
["経　営　管　理　者　及　び　専　任　技　術　者　名　簿"]
["  "]
["氏　　　　名",null,"法令による免許等",null,null,"経営管理者及び専任技術者の区分",null,null,"専任技術者業種"]
[]
[null,null,"名　　称",null,"取得年月日"]
[]
[]
[]
[]
[]
[]
[]
[]
[]
[]
[]
["記載要領"]
["１ 「法令による免許等」の欄には、履行に際して免許等の必要な業務に関し法律又は命令による免許又は技術若しくは技能の認定を受けたものを記載すること。"]
["　（例：○○建築士・○○土木施工管理技士等）"]
["２「経営管理者及び専任技術者の区分」には、“経営管理者”“専任技術者”を記載してください。兼務の場合は“経営管理者専任技術者兼務”と記載"]
["　してください。"]
["３「専任技術者の業種」の欄には、専任技術者の登録をしている業種をすべて記載すること。"]
["４　電算入力表（様式第5号）の「有資格職員数」に記載の無い資格であっても、携わる業務に関係する資格を有する場合はなるべく記載すること。"]
["　　ただし、一人で同一資格（１級、２級○○施工管理技士）を有する場合は、上位（１級）のみ記入。"]

{"sheet":"様式第12号","index":11,"n_rows":36,"n_cols":9,"rows_kept":36,"cut":false,"hidden":false,"merged":[[2,0,2,9],[5,0,5,9],[18,0,18,9]]}
["様式第12号"]
[]
["令和　　年　　月　　日　　"]
[]
[]
["最低賃金遵守誓約書"]
[]
[]
[]
["　　浦添市長　殿"]
[]
[]
[]
[null,"　令和７・８年度浦添市競争入札参加資格審査申請（工事）に係る下記の事項に"]
[null,"ついて、事実と相違ないことを誓約します。"]
[]
[]
[]
["記"]
[]
[]
[null,"　　　「当社は、最低賃金法を遵守し、最低賃金以上の賃金を支払っており、"]
[null,"　　　同法の規定による罰則の適用を受けておりません。」"]
[]
[]
[]
[]
[]
[]
[]
[]
[null,null,"所　在　地"]
[]
[null,null,"商号又は名称"]
[]
[null,null,"代表者氏名",null,null,null,null,null,"印"]

{"sheet":"様式第13号","index":12,"n_rows":32,"n_cols":18,"rows_kept":32,"cut":false,"hidden":false,"merged":[]}
["様式第13号"]
[]
[null,null,null,"労働保険"]
[null,null,null,"社会保険",null,null," 未加入理由書",null,null,null,null,"←　該当する保険に、〇をつける。"]
[null,null,null,"退職金共済制度"]
[]
[]
[]
[null,"【　理　由　】",null,null,null,null,null,null,null,null,null,"【記入例】"]
[null,null,null,null,null,null,null,null,null,null,null,null,"労働保険の場合"]
[null,null,null,null,null,null,null,null,null,null,null,null,"・１週間の所定労働時間が20時間未満であるため"]
[null,null,null,null,null,null,null,null,null,null,null,null,"・３１日以上継続して雇用する見込みがないため"]
[null,null,null,null,null,null,null,null,null,null,null,null,"・大学や専修学校の学生・生徒等であるため",null,null,null,null,"など"]
[]
[null,null,null,null,null,null,null,null,null,null,null,null,"社会保険の場合"]
[null,null,null,null,null,null,null,null,null,null,null,null,"・５人未満(家族従事者は含まない)の個人事業所であるため"]
[null,null,null,null,null,null,null,null,null,null,null,null,"・日々雇い入れられる者であるため"]
[null,null,null,null,null,null,null,null,null,null,null,null,"・２か月以内の期間を定めて使用される者であるため"]
[null,null,null,null,null,null,null,null,null,null,null,null,null,null,null,null,null,"など"]
[]
[]
[]
[]
[]
[]
[null,"令和　　年　　月　　日"]
[]
[null,null,null,null,null,"所　在　地"]
[null,null,null,null,null,"商号又は名称"]
[null,null,null,null,null,"代表者氏名"]
[]
[null,null,null,null,null,null,null,"（押印は必要ありません）"]